[Event "CCT Chessable Masters Play-In 2025"]
[Site "Online"]
[Date "2025.02.17"]
[Round "3.46"]
[White "Dai, Changren"]
[Black "Indjic, Aleksandar"]
[Result "0-1"]
[ECO "A75"]
[WhiteElo "2527"]
[BlackElo "2650"]
[PlyCount "90"]
[EventDate "2025.02.13"]
[EventType "swiss"]
[EventCountry "NET"]
[TimeControl "600"]
[WhiteClock "0:00:43"]
[BlackClock "0:04:34"]

1. d4 {[%emt 0:00:02]} Nf6 {[%emt 0:00:02]} 2. c4 {[%emt 0:00:01]} e6 {[%emt 0:00:01]} 3. Nc3 {[%emt 0:00:01]} c5 {[%emt 0:00:00]} 4. d5 {[%emt 0:00:03]} exd5 {[%emt 0:00:01]} 5. cxd5 {[%emt 0:00:00]} d6 {[%emt 0:00:00]} 6. e4 {[%emt 0:00:01]} g6 {[%emt 0:00:01]} 7. Nf3 {[%emt 0:00:04]} a6 {[%emt 0:00:02]} 8. a4 {[%emt 0:00:01]} Bg4 {[%emt 0:00:01]} 9. Be2 {[%emt 0:00:04]} Bxf3 {[%emt 0:00:01]} 10. Bxf3 {[%emt 0:00:01]} Nbd7 {[%emt 0:00:03]} 11. O-O {[%emt 0:00:02]} Bg7 {[%emt 0:00:01]} 12. Bf4 {[%emt 0:00:07]} Qe7 {[%emt 0:00:01]} 13. Qc2 {[%emt 0:00:10]} O-O {[%emt 0:00:02]} 14. a5 {[%emt 0:00:01]} Rab8 {[%emt 0:00:02]} 15. Rfe1 {[%emt 0:00:18]} h5 {[%emt 0:00:20]} 16. Be2 {[%emt 0:00:15]} Ne8 {[%emt 0:00:07]} 17. Rab1 {[%emt 0:00:11]} b5 {[%emt 0:00:05]} 18. axb6 {[%emt 0:00:03]} Rxb6 {[%emt 0:00:01]} 19. Na4 {[%emt 0:00:08]} Rb4 {[%emt 0:00:02]} 20. Bxa6 {[%emt 0:00:03]} Nef6 {[%emt 0:00:09]} 21. Nc3 {[%emt 0:00:05]} Rfb8 {[%emt 0:00:03]} 22. Bf1 {[%emt 0:00:25]} Nh7 {[%emt 0:00:07]} 23. b3 {[%emt 0:00:09]} Bd4 {[%emt 0:00:08]} 24. Bd2 {[%emt 0:01:05]} Qf6 {[%emt 0:00:23]} 25. Nd1 {[%emt 0:00:01]} R4b7 {[%emt 0:00:02]} 26. Ne3 {[%emt 0:00:17]} Ne5 {[%emt 0:00:04]} 27. Be2 {[%emt 0:00:31]} h4 {[%emt 0:00:37]} 28. h3 {[%emt 0:00:10]} Ng5 {[%emt 0:00:22]} 29. Rf1 {[%emt 0:00:01]} Qf4 {[%emt 0:00:01]} 30. Ng4 {[%emt 0:00:03]} Nef3+ {[%emt 0:01:03]} 31. gxf3 {[%emt 0:00:28]} Qg3+ {[%emt 0:00:15]} 32. Kh1 {[%emt 0:00:01]} Qxh3+ {[%emt 0:00:01]} 33. Nh2 {[%emt 0:00:34]} Nxf3 {[%emt 0:00:02]} 34. Bf4 {[%emt 0:00:01]} Nxh2 {[%emt 0:00:23]} 35. Bxh2 {[%emt 0:00:02]} Rxb3 {[%emt 0:00:01]} 36. Rxb3 {[%emt 0:00:05]} Rxb3 {[%emt 0:00:02]} 37. Qd1 {[%emt 0:00:17]} Rg3 {[%emt 0:00:22]} 38. Rg1 {[%emt 0:00:25]} Bxf2 {[%emt 0:00:02]} 39. Bg4 {[%emt 0:00:47]} Rxg1+ {[%emt 0:00:02]} 40. Qxg1 {[%emt 0:00:02]} Qe3 {[%emt 0:00:08]} 41. Qb1 {[%emt 0:00:11]} Bg3 {[%emt 0:00:02]} 42. Bxg3 {[%emt 0:00:22]} Qxg3 {[%emt 0:00:03]} 43. Qd1 {[%emt 0:00:06]} c4 {[%emt 0:00:04]} 44. Qf3 {[%emt 0:00:07]} Qe1+ {[%emt 0:00:06]} 45. Kh2 {[%emt 0:01:26]} c3 {[%emt 0:00:01]} 0-1

[Event "CCT Chessable Masters Play-In 2025"]
[Site "Online"]
[Date "2025.02.17"]
[Round "3.47"]
[White "Shimanov, Aleksandr"]
[Black "Guliyev, Namig"]
[Result "1-0"]
[ECO "C41"]
[WhiteElo "2593"]
[BlackElo "2486"]
[PlyCount "89"]
[EventDate "2025.02.13"]
[EventType "swiss"]
[EventCountry "NET"]
[TimeControl "600"]
[WhiteClock "0:01:03"]

1. e4 {[%emt 0:00:01]} e5 {[%emt 0:00:04]} 2. Nf3 {[%emt 0:00:02]} Nf6 {[%emt 0:00:02]} 3. Nc3 {[%emt 0:00:01]} d6 {[%emt 0:00:05]} 4. d4 {[%emt 0:00:12]} Nbd7 {[%emt 0:00:18]} 5. g4 {[%emt 0:00:30]} Nxg4 {[%emt 0:00:05]} 6. Rg1 {[%emt 0:00:01]} Ngf6 {[%emt 0:00:02]} 7. Be3 {[%emt 0:00:01]} c6 {[%emt 0:00:04]} 8. Qd3 {[%emt 0:00:01]} b5 {[%emt 0:00:08]} 9. O-O-O {[%emt 0:00:03]} Qc7 {[%emt 0:00:14]} 10. Nh4 {[%emt 0:00:49]} Bb7 {[%emt 0:00:11]} 11. Bh3 {[%emt 0:01:34]} b4 {[%emt 0:00:14]} 12. Ne2 {[%emt 0:00:04]} c5 {[%emt 0:00:23]} 13. dxc5 {[%emt 0:00:32]} Bxe4 {[%emt 0:00:02]} 14. Qc4 {[%emt 0:00:14]} Nxc5 {[%emt 0:00:08]} 15. Nf5 {[%emt 0:00:28]} g6 {[%emt 0:01:14]} 16. Nxd6+ {[%emt 0:00:53]} Bxd6 {[%emt 0:00:15]} 17. Rxd6 {[%emt 0:00:01]} Qxd6 {[%emt 0:00:19]} 18. Bxc5 {[%emt 0:00:01]} Qc6 {[%emt 0:00:13]} 19. Qxb4 {[%emt 0:00:18]} Bf5 {[%emt 0:01:01]} 20. Bg2 {[%emt 0:00:20]} Be4 {[%emt 0:00:10]} 21. Bh3 {[%emt 0:00:02]} Bf5 {[%emt 0:00:03]} 22. Bxf5 {[%emt 0:00:57]} gxf5 {[%emt 0:00:00]} 23. Ng3 {[%emt 0:00:01]} Rc8 {[%emt 0:00:46]} 24. Nxf5 {[%emt 0:00:32]} Qxc5 {[%emt 0:00:06]} 25. Qd2 {[%emt 0:00:00]} Rg8 {[%emt 0:00:45]} 26. Re1 {[%emt 0:00:07]} Rd8 {[%emt 0:00:43]} 27. Qf4 {[%emt 0:00:08]} Rg1 {[%emt 0:00:16]} 28. Qa4+ {[%emt 0:00:13]} Rd7 {[%emt 0:00:20]} 29. Rxg1 {[%emt 0:00:05]} Qxf2 {[%emt 0:00:01]} 30. Ng7+ {[%emt 0:00:01]} Kf8 {[%emt 0:00:23]} 31. Qb4+ {[%emt 0:00:11]} Re7 {[%emt 0:00:15]} 32. Rd1 {[%emt 0:00:08]} Qf4+ {[%emt 0:00:12]} 33. Qxf4 {[%emt 0:00:00]} exf4 {[%emt 0:00:00]} 34. Nf5 {[%emt 0:00:01]} Re5 {[%emt 0:00:07]} 35. Rd8+ {[%emt 0:00:01]} Ne8 {[%emt 0:00:01]} 36. Nd4 {[%emt 0:00:00]} Kg7 {[%emt 0:00:13]} 37. c4 {[%emt 0:00:04]} Nf6 {[%emt 0:00:03]} 38. b4 {[%emt 0:00:01]} Kg6 {[%emt 0:00:02]} 39. c5 {[%emt 0:00:01]} Nd5 {[%emt 0:00:01]} 40. Nc6 {[%emt 0:00:09]} Re1+ {[%emt 0:00:22]} 41. Kd2 {[%emt 0:00:02]} Re6 {[%emt 0:00:04]} 42. Nd4 {[%emt 0:00:02]} Re5 {[%emt 0:00:02]} 43. c6 {[%emt 0:00:01]} f3 {[%emt 0:00:02]} 44. Nxf3 {[%emt 0:00:01]} Rh5 45. Rd6+ {[%emt 0:00:03]} 1-0

[Event "CCT Chessable Masters Play-In 2025"]
[Site "Online"]
[Date "2025.02.17"]
[Round "3.48"]
[White "Sjugirov, Sanan"]
[Black "Demchenko, Anton"]
[Result "1-0"]
[ECO "C70"]
[WhiteElo "2643"]
[BlackElo "2619"]
[PlyCount "130"]
[EventDate "2025.02.13"]
[EventType "swiss"]
[EventCountry "NET"]
[TimeControl "600"]
[WhiteClock "0:03:12"]
[BlackClock "0:00:11"]

1. e4 {[%emt 0:00:01]} e5 {[%emt 0:01:18]} 2. Nf3 {[%emt 0:00:02]} Nc6 {[%emt 0:00:01]} 3. Bb5 {[%emt 0:00:01]} a6 {[%emt 0:00:00]} 4. Ba4 {[%emt 0:00:01]} Nge7 {[%emt 0:00:01]} 5. Nc3 {[%emt 0:00:05]} d6 {[%emt 0:00:01]} 6. Bb3 {[%emt 0:00:19]} Na5 {[%emt 0:00:08]} 7. d4 {[%emt 0:00:08]} exd4 {[%emt 0:00:32]} 8. Qxd4 {[%emt 0:00:00]} Nec6 {[%emt 0:00:24]} 9. Qd3 {[%emt 0:00:06]} Nxb3 {[%emt 0:00:02]} 10. axb3 {[%emt 0:00:01]} Be7 {[%emt 0:00:02]} 11. O-O {[%emt 0:00:07]} O-O {[%emt 0:00:03]} 12. Nd5 {[%emt 0:00:05]} Re8 {[%emt 0:00:02]} 13. Bd2 {[%emt 0:00:09]} Bf8 {[%emt 0:00:03]} 14. Bc3 {[%emt 0:00:06]} Bg4 {[%emt 0:00:32]} 15. h3 {[%emt 0:00:05]} Bh5 {[%emt 0:00:02]} 16. Nd2 {[%emt 0:00:22]} f6 {[%emt 0:00:39]} 17. f4 {[%emt 0:00:09]} Bf7 {[%emt 0:00:07]} 18. Nc4 {[%emt 0:00:13]} Ne7 {[%emt 0:00:17]} 19. Nxf6+ {[%emt 0:00:48]} gxf6 {[%emt 0:00:01]} 20. Bxf6 {[%emt 0:00:01]} Qd7 {[%emt 0:00:36]} 21. f5 {[%emt 0:00:04]} Bxc4 {[%emt 0:02:01]} 22. Qxc4+ {[%emt 0:00:00]} d5 {[%emt 0:00:00]} 23. Qd3 {[%emt 0:00:01]} Nc6 {[%emt 0:00:33]} 24. e5 {[%emt 0:00:08]} Nxe5 {[%emt 0:00:31]} 25. Qg3+ {[%emt 0:00:06]} Bg7 {[%emt 0:00:00]} 26. Bxe5 {[%emt 0:00:01]} Rxe5 {[%emt 0:00:01]} 27. f6 {[%emt 0:00:00]} Re6 {[%emt 0:00:19]} 28. fxg7 {[%emt 0:00:02]} Qxg7 {[%emt 0:00:03]} 29. Qf3 {[%emt 0:00:05]} c6 {[%emt 0:00:03]} 30. Rae1 {[%emt 0:00:02]} Rae8 {[%emt 0:00:08]} 31. Rxe6 {[%emt 0:00:03]} Rxe6 {[%emt 0:00:00]} 32. c3 {[%emt 0:00:06]} h6 {[%emt 0:00:16]} 33. Kh1 {[%emt 0:00:03]} Re7 {[%emt 0:00:04]} 34. Rd1 {[%emt 0:00:22]} Rf7 {[%emt 0:00:02]} 35. Qe2 {[%emt 0:00:01]} Re7 {[%emt 0:00:01]} 36. Qf2 {[%emt 0:00:01]} Rf7 {[%emt 0:00:01]} 37. Qd2 {[%emt 0:00:31]} Qg5 {[%emt 0:00:02]} 38. Qd4 {[%emt 0:00:06]} Qg3 {[%emt 0:00:02]} 39. Rg1 {[%emt 0:00:13]} Kh7 {[%emt 0:00:03]} 40. b4 {[%emt 0:00:08]} Rg7 {[%emt 0:00:01]} 41. Qd2 {[%emt 0:00:04]} Rf7 {[%emt 0:00:03]} 42. Qc2+ {[%emt 0:00:10]} Kg7 {[%emt 0:00:01]} 43. Qd1 {[%emt 0:00:06]} Rf4 {[%emt 0:00:02]} 44. Qe2 {[%emt 0:00:07]} Rf7 {[%emt 0:00:02]} 45. c4 {[%emt 0:00:09]} d4 {[%emt 0:00:02]} 46. Rd1 {[%emt 0:00:08]} Rf2 {[%emt 0:00:06]} 47. Qe7+ {[%emt 0:00:01]} Kg8 {[%emt 0:00:02]} 48. Qd8+ {[%emt 0:00:10]} Kh7 {[%emt 0:00:01]} 49. Qd7+ {[%emt 0:00:21]} Kg8 {[%emt 0:00:02]} 50. Qc8+ {[%emt 0:00:04]} Rf8 {[%emt 0:00:03]} 51. Qe6+ {[%emt 0:00:06]} Kg7 {[%emt 0:00:03]} 52. Qd7+ {[%emt 0:00:01]} Kg8 {[%emt 0:00:03]} 53. Qxd4 {[%emt 0:00:02]} Rf2 {[%emt 0:00:01]} 54. Qd8+ {[%emt 0:00:03]} Rf8 {[%emt 0:00:00]} 55. Qe7 {[%emt 0:00:04]} Qg7 {[%emt 0:00:03]} 56. Qxg7+ {[%emt 0:00:05]} Kxg7 {[%emt 0:00:00]} 57. Rd7+ {[%emt 0:00:01]} Kg6 {[%emt 0:00:05]} 58. Rxb7 {[%emt 0:00:02]} Rf4 {[%emt 0:00:01]} 59. b3 {[%emt 0:00:03]} Rf6 {[%emt 0:00:04]} 60. Rb6 {[%emt 0:00:01]} Kf5 {[%emt 0:00:00]} 61. Rxa6 {[%emt 0:00:02]} Ke5 {[%emt 0:00:00]} 62. b5 {[%emt 0:00:01]} Rf1+ {[%emt 0:00:01]} 63. Kh2 {[%emt 0:00:01]} cxb5 {[%emt 0:00:00]} 64. Ra5 {[%emt 0:00:01]} Kd4 {[%emt 0:00:02]} 65. Rxb5 {[%emt 0:00:03]} Rf6 {[%emt 0:00:00]} 1-0

[Event "CCT Chessable Masters Play-In 2025"]
[Site "Online"]
[Date "2025.02.17"]
[Round "3.49"]
[White "Aryan Chopra"]
[Black "Blohberger, Felix"]
[Result "1/2-1/2"]
[ECO "D30"]
[WhiteElo "2620"]
[BlackElo "2532"]
[PlyCount "90"]
[EventDate "2025.02.13"]
[EventType "swiss"]
[EventCountry "NET"]
[TimeControl "600"]
[WhiteClock "0:00:57"]
[BlackClock "0:00:44"]

1. d4 {[%emt 0:00:01]} d5 {[%emt 0:00:04]} 2. Nf3 {[%emt 0:00:02]} Nf6 {[%emt 0:00:03]} 3. c4 {[%emt 0:00:01]} e6 {[%emt 0:00:02]} 4. e3 {[%emt 0:00:02]} a6 {[%emt 0:00:08]} 5. b3 {[%emt 0:00:03]} c5 {[%emt 0:00:04]} 6. cxd5 {[%emt 0:00:01]} exd5 {[%emt 0:00:19]} 7. Bb2 {[%emt 0:00:03]} Nc6 {[%emt 0:00:08]} 8. Bd3 {[%emt 0:00:13]} cxd4 {[%emt 0:00:39]} 9. Nxd4 {[%emt 0:00:02]} Bb4+ {[%emt 0:00:03]} 10. Nd2 {[%emt 0:00:09]} Ne5 {[%emt 0:00:13]} 11. Qe2 {[%emt 0:00:32]} Ne4 {[%emt 0:01:00]} 12. Bxe4 {[%emt 0:00:04]} dxe4 {[%emt 0:00:01]} 13. O-O {[%emt 0:00:02]} Bg4 {[%emt 0:00:07]} 14. f3 {[%emt 0:00:04]} exf3 {[%emt 0:00:02]} 15. gxf3 {[%emt 0:00:01]} Bh3 {[%emt 0:00:08]} 16. Rfd1 {[%emt 0:00:02]} O-O {[%emt 0:00:37]} 17. Kh1 {[%emt 0:00:02]} Qe7 {[%emt 0:00:10]} 18. Ne4 {[%emt 0:00:16]} Ba3 {[%emt 0:00:38]} 19. Bxa3 {[%emt 0:01:40]} Qxa3 {[%emt 0:00:00]} 20. Rg1 {[%emt 0:00:38]} Qe7 {[%emt 0:00:04]} 21. Nc3 {[%emt 0:00:01]} Rad8 {[%emt 0:00:08]} 22. Rad1 {[%emt 0:00:01]} Kh8 {[%emt 0:00:10]} 23. e4 {[%emt 0:00:11]} Be6 {[%emt 0:00:18]} 24. Qe3 {[%emt 0:00:21]} Nc6 {[%emt 0:00:49]} 25. Nxc6 {[%emt 0:00:18]} bxc6 {[%emt 0:00:00]} 26. Na4 {[%emt 0:00:01]} Bh3 {[%emt 0:00:26]} 27. Qc3 {[%emt 0:00:13]} f5 {[%emt 0:00:19]} 28. e5 {[%emt 0:00:19]} f4 {[%emt 0:00:10]} 29. Nc5 {[%emt 0:00:11]} a5 {[%emt 0:00:14]} 30. e6 {[%emt 0:00:22]} Rxd1 {[%emt 0:01:10]} 31. Rxd1 {[%emt 0:00:01]} Rd8 {[%emt 0:00:00]} 32. Rxd8+ {[%emt 0:02:07]} Qxd8 {[%emt 0:00:00]} 33. Nd3 {[%emt 0:00:24]} Bxe6 {[%emt 0:00:14]} 34. Nxf4 {[%emt 0:00:01]} Bd5 {[%emt 0:00:25]} 35. Nxd5 {[%emt 0:00:00]} Qxd5 {[%emt 0:00:01]} 36. Kg2 {[%emt 0:00:02]} h6 {[%emt 0:00:01]} 37. h4 {[%emt 0:00:06]} Qb5 {[%emt 0:00:07]} 38. Kg3 {[%emt 0:00:02]} Qd5 {[%emt 0:00:02]} 39. a4 {[%emt 0:00:03]} Kg8 {[%emt 0:00:05]} 40. Qe3 {[%emt 0:00:13]} Kf7 {[%emt 0:00:01]} 41. Qf4+ {[%emt 0:00:02]} Ke7 {[%emt 0:00:02]} 42. Qe3+ {[%emt 0:00:02]} Kf6 {[%emt 0:00:02]} 43. Qf4+ {[%emt 0:00:02]} Ke7 {[%emt 0:00:00]} 44. Qe3+ {[%emt 0:00:01]} Kf6 {[%emt 0:00:01]} 45. Qf4+ {[%emt 0:00:01]} Ke7 {[%emt 0:00:01]} 1/2-1/2

[Event "CCT Chessable Masters Play-In 2025"]
[Site "Online"]
[Date "2025.02.17"]
[Round "3.50"]
[White "Samadov, Read"]
[Black "Volokitin, Andrei"]
[Result "0-1"]
[ECO "D39"]
[WhiteElo "2501"]
[BlackElo "2643"]
[PlyCount "64"]
[EventDate "2025.02.13"]
[EventType "swiss"]
[EventCountry "NET"]
[TimeControl "600"]
[WhiteClock "0:02:38"]
[BlackClock "0:03:58"]

1. d4 {[%emt 0:00:01]} Nf6 {[%emt 0:00:02]} 2. c4 {[%emt 0:00:00]} e6 {[%emt 0:00:02]} 3. Nf3 {[%emt 0:00:01]} d5 {[%emt 0:00:02]} 4. Nc3 {[%emt 0:00:01]} Bb4 {[%emt 0:00:01]} 5. Bg5 {[%emt 0:00:02]} dxc4 {[%emt 0:00:02]} 6. e4 {[%emt 0:00:05]} h6 {[%emt 0:00:02]} 7. Bxf6 {[%emt 0:00:04]} Qxf6 {[%emt 0:00:02]} 8. Bxc4 {[%emt 0:00:00]} c5 {[%emt 0:00:01]} 9. O-O {[%emt 0:00:14]} cxd4 {[%emt 0:00:03]} 10. e5 {[%emt 0:00:04]} Qd8 {[%emt 0:00:03]} 11. Ne4 {[%emt 0:00:01]} O-O {[%emt 0:00:01]} 12. Qe2 {[%emt 0:00:01]} Be7 {[%emt 0:00:02]} 13. Rad1 {[%emt 0:00:05]} Qa5 {[%emt 0:00:17]} 14. a3 {[%emt 0:00:07]} Rd8 {[%emt 0:00:06]} 15. b4 {[%emt 0:00:32]} Qxa3 {[%emt 0:00:13]} 16. b5 {[%emt 0:00:24]} Qa5 {[%emt 0:00:31]} 17. g4 {[%emt 0:00:03]} Nd7 {[%emt 0:00:07]} 18. g5 {[%emt 0:00:08]} hxg5 {[%emt 0:00:08]} 19. Nfxg5 {[%emt 0:01:33]} Nxe5 {[%emt 0:02:00]} 20. Qh5 {[%emt 0:00:06]} Ng6 {[%emt 0:00:12]} 21. Nxf7 {[%emt 0:00:29]} Kxf7 {[%emt 0:00:13]} 22. Qf5+ {[%emt 0:00:04]} Bf6 {[%emt 0:00:16]} 23. Bxe6+ {[%emt 0:00:17]} Bxe6 {[%emt 0:00:58]} 24. Ng5+ {[%emt 0:00:01]} Ke8 {[%emt 0:00:02]} 25. Qxe6+ {[%emt 0:00:35]} Ne7 {[%emt 0:00:02]} 26. Qf7+ {[%emt 0:00:09]} Kd7 {[%emt 0:00:01]} 27. Qe6+ {[%emt 0:00:51]} Kc7 {[%emt 0:00:02]} 28. Nf7 {[%emt 0:00:21]} Qxb5 {[%emt 0:00:11]} 29. Rb1 {[%emt 0:00:06]} Qd5 {[%emt 0:00:08]} 30. Rfc1+ {[%emt 0:00:29]} Nc6 {[%emt 0:00:02]} 31. Nxd8 {[%emt 0:00:08]} Rxd8 {[%emt 0:00:02]} 32. Qg4 {[%emt 0:00:20]} Qg5 {[%emt 0:00:08]} 0-1

[Event "CCT Chessable Masters Play-In 2025"]
[Site "Online"]
[Date "2025.02.17"]
[Round "3.51"]
[White "Bharath Subramaniyam H"]
[Black "Nigmatov, Ortik"]
[Result "1-0"]
[ECO "B40"]
[WhiteElo "2567"]
[BlackElo "2505"]
[PlyCount "57"]
[EventDate "2025.02.13"]
[EventType "swiss"]
[EventCountry "NET"]
[TimeControl "600"]
[WhiteClock "0:06:09"]
[BlackClock "0:05:20"]

1. e4 {[%emt 0:00:01]} c5 {[%emt 0:00:04]} 2. Nf3 {[%emt 0:00:01]} e6 {[%emt 0:00:01]} 3. d4 {[%emt 0:00:02]} cxd4 {[%emt 0:00:00]} 4. Qxd4 {[%emt 0:00:00]} Nc6 {[%emt 0:00:02]} 5. Qe3 {[%emt 0:00:02]} Nf6 {[%emt 0:00:05]} 6. Nc3 {[%emt 0:00:01]} d5 {[%emt 0:00:03]} 7. exd5 {[%emt 0:00:02]} Nxd5 {[%emt 0:00:04]} 8. Nxd5 {[%emt 0:00:02]} Qxd5 {[%emt 0:00:00]} 9. Bd3 {[%emt 0:00:01]} Bc5 {[%emt 0:00:08]} 10. Qe2 {[%emt 0:00:02]} O-O {[%emt 0:00:04]} 11. Be4 {[%emt 0:00:27]} Qh5 {[%emt 0:00:07]} 12. g4 {[%emt 0:00:11]} Qxg4 {[%emt 0:00:12]} 13. Rg1 {[%emt 0:00:07]} Qh5 {[%emt 0:00:27]} 14. Rg5 {[%emt 0:00:05]} Qh3 {[%emt 0:00:11]} 15. Rxc5 {[%emt 0:00:10]} h6 {[%emt 0:00:02]} 16. Be3 {[%emt 0:00:06]} Rd8 {[%emt 0:00:43]} 17. Rd1 {[%emt 0:00:22]} Bd7 {[%emt 0:00:03]} 18. Rc3 {[%emt 0:01:00]} Nb4 {[%emt 0:00:12]} 19. Rd4 {[%emt 0:00:06]} Nd5 {[%emt 0:00:04]} 20. Bxd5 {[%emt 0:00:06]} exd5 {[%emt 0:00:00]} 21. Ne5 {[%emt 0:00:07]} Qxh2 {[%emt 0:00:38]} 22. Bf4 {[%emt 0:00:15]} Qh1+ {[%emt 0:00:10]} 23. Kd2 {[%emt 0:00:08]} Bf5 {[%emt 0:00:10]} 24. Qf3 {[%emt 0:00:10]} Qh4 {[%emt 0:00:44]} 25. Be3 {[%emt 0:00:06]} Be4 {[%emt 0:00:05]} 26. Qxf7+ {[%emt 0:00:04]} Kh7 {[%emt 0:00:03]} 27. Rc7 {[%emt 0:00:05]} Rg8 {[%emt 0:00:06]} 28. Qg6+ {[%emt 0:00:02]} Bxg6 {[%emt 0:00:12]} 29. Rxh4 {[%emt 0:00:00]} 1-0

[Event "CCT Chessable Masters Play-In 2025"]
[Site "Online"]
[Date "2025.02.17"]
[Round "3.53"]
[White "Fressinet, Laurent"]
[Black "Kobalia, Mikhail"]
[Result "1-0"]
[ECO "A11"]
[WhiteElo "2588"]
[BlackElo "2538"]
[PlyCount "107"]
[EventDate "2025.02.13"]
[EventType "swiss"]
[EventCountry "NET"]
[TimeControl "600"]
[WhiteClock "0:01:55"]
[BlackClock "0:00:33"]

1. Nf3 {[%emt 0:00:01]} d5 {[%emt 0:00:03]} 2. e3 {[%emt 0:00:02]} Nf6 {[%emt 0:00:03]} 3. c4 {[%emt 0:00:01]} c6 {[%emt 0:00:02]} 4. Nc3 {[%emt 0:00:02]} Bg4 {[%emt 0:00:06]} 5. Qb3 {[%emt 0:00:04]} Qb6 {[%emt 0:00:07]} 6. Ne5 {[%emt 0:00:02]} Be6 {[%emt 0:00:04]} 7. d4 {[%emt 0:00:07]} dxc4 {[%emt 0:00:09]} 8. Bxc4 {[%emt 0:00:15]} Bxc4 {[%emt 0:00:01]} 9. Qxc4 {[%emt 0:00:12]} e6 {[%emt 0:00:03]} 10. O-O {[%emt 0:00:13]} Be7 {[%emt 0:00:21]} 11. e4 {[%emt 0:00:06]} O-O {[%emt 0:00:02]} 12. Be3 {[%emt 0:00:05]} Qa6 {[%emt 0:00:27]} 13. f3 {[%emt 0:00:08]} Rd8 {[%emt 0:00:04]} 14. Rfd1 {[%emt 0:00:08]} Nfd7 {[%emt 0:00:07]} 15. Qxa6 {[%emt 0:00:13]} Nxa6 {[%emt 0:00:01]} 16. Nc4 {[%emt 0:00:00]} b6 {[%emt 0:00:17]} 17. Rac1 {[%emt 0:00:11]} Rac8 {[%emt 0:00:03]} 18. a3 {[%emt 0:00:30]} Nc7 {[%emt 0:00:31]} 19. Bf4 {[%emt 0:00:06]} Ne8 {[%emt 0:00:09]} 20. Kf1 {[%emt 0:00:10]} h6 {[%emt 0:00:08]} 21. Ke2 {[%emt 0:00:09]} Bg5 {[%emt 0:00:07]} 22. Bxg5 {[%emt 0:00:10]} hxg5 {[%emt 0:00:00]} 23. e5 {[%emt 0:00:01]} c5 {[%emt 0:00:31]} 24. d5 {[%emt 0:00:18]} exd5 {[%emt 0:00:01]} 25. Nxd5 {[%emt 0:00:22]} Kf8 {[%emt 0:00:03]} 26. a4 {[%emt 0:00:07]} Nb8 {[%emt 0:00:04]} 27. Nde3 {[%emt 0:00:33]} Nc6 {[%emt 0:00:04]} 28. Nf5 {[%emt 0:00:45]} Nd4+ {[%emt 0:01:01]} 29. Nxd4 {[%emt 0:00:03]} cxd4 {[%emt 0:00:00]} 30. Kd3 {[%emt 0:00:18]} Rc5 {[%emt 0:00:08]} 31. b4 {[%emt 0:00:07]} Rcd5 {[%emt 0:00:15]} 32. g3 {[%emt 0:00:12]} b5 {[%emt 0:00:07]} 33. Na5 {[%emt 0:00:21]} Rxe5 {[%emt 0:00:16]} 34. Nc6 {[%emt 0:00:07]} Re3+ {[%emt 0:00:01]} 35. Kd2 {[%emt 0:00:00]} Rd5 {[%emt 0:00:03]} 36. axb5 {[%emt 0:00:23]} Rxf3 {[%emt 0:00:55]} 37. Rc5 {[%emt 0:00:14]} Rf2+ {[%emt 0:00:41]} 38. Ke1 {[%emt 0:00:08]} Rxc5 {[%emt 0:00:15]} 39. bxc5 {[%emt 0:00:00]} Rc2 {[%emt 0:00:01]} 40. Nxa7 {[%emt 0:00:10]} Rxc5 {[%emt 0:00:01]} 41. Rxd4 {[%emt 0:00:04]} Rc7 {[%emt 0:00:10]} 42. b6 {[%emt 0:00:15]} Rb7 {[%emt 0:00:03]} 43. Nc8 {[%emt 0:00:01]} Rb8 {[%emt 0:01:32]} 44. Rd8 {[%emt 0:00:03]} f5 {[%emt 0:00:02]} 45. Ke2 {[%emt 0:00:08]} g4 {[%emt 0:00:01]} 46. Kf2 {[%emt 0:00:18]} g6 {[%emt 0:00:02]} 47. Ke2 {[%emt 0:00:01]} g5 {[%emt 0:00:01]} 48. Kf2 {[%emt 0:00:01]} f4 {[%emt 0:00:01]} 49. Ke2 {[%emt 0:00:01]} Rb7 {[%emt 0:00:06]} 50. Rxe8+ {[%emt 0:00:03]} Kxe8 {[%emt 0:00:02]} 51. Nd6+ {[%emt 0:00:01]} Kd7 {[%emt 0:00:00]} 52. Nxb7 {[%emt 0:00:01]} Kc6 {[%emt 0:00:01]} 53. Nd8+ {[%emt 0:00:03]} Kxb6 {[%emt 0:00:04]} 54. Ne6 {[%emt 0:00:01]} 1-0

[Event "CCT Chessable Masters Play-In 2025"]
[Site "Online"]
[Date "2025.02.17"]
[Round "3.54"]
[White "Mikaelyan, Arman"]
[Black "Madaminov, Mukhiddin"]
[Result "1-0"]
[ECO "B40"]
[WhiteElo "2497"]
[BlackElo "2521"]
[PlyCount "63"]
[EventDate "2025.02.13"]
[EventType "swiss"]
[EventCountry "NET"]
[TimeControl "600"]
[WhiteClock "0:01:46"]
[BlackClock "0:00:38"]

1. e4 {[%emt 0:00:02]} c5 {[%emt 0:00:03]} 2. Nf3 {[%emt 0:00:01]} e6 {[%emt 0:00:01]} 3. c3 {[%emt 0:00:02]} d5 {[%emt 0:00:02]} 4. e5 {[%emt 0:00:10]} Nc6 {[%emt 0:00:03]} 5. g3 {[%emt 0:00:14]} d4 {[%emt 0:01:41]} 6. d3 {[%emt 0:00:08]} Nge7 {[%emt 0:00:06]} 7. Bg2 {[%emt 0:00:03]} Qc7 {[%emt 0:00:02]} 8. Qe2 {[%emt 0:00:03]} Ng6 {[%emt 0:00:01]} 9. O-O {[%emt 0:00:03]} Ncxe5 {[%emt 0:00:12]} 10. Nxe5 {[%emt 0:00:15]} Qxe5 {[%emt 0:00:00]} 11. Be4 {[%emt 0:00:01]} f5 {[%emt 0:00:21]} 12. cxd4 {[%emt 0:01:04]} cxd4 {[%emt 0:00:07]} 13. f4 {[%emt 0:00:10]} Qd6 {[%emt 0:00:04]} 14. Bxf5 {[%emt 0:00:05]} Be7 {[%emt 0:00:26]} 15. Be4 {[%emt 0:00:44]} O-O {[%emt 0:00:23]} 16. Na3 {[%emt 0:00:05]} Bf6 {[%emt 0:00:03]} 17. Nc4 {[%emt 0:00:05]} Qd8 {[%emt 0:00:06]} 18. b3 {[%emt 0:00:06]} Be7 {[%emt 0:01:06]} 19. Bd2 {[%emt 0:00:23]} Rb8 {[%emt 0:00:05]} 20. Rae1 {[%emt 0:00:04]} b6 {[%emt 0:00:24]} 21. h4 {[%emt 0:00:06]} Bd6 {[%emt 0:00:50]} 22. Qh5 {[%emt 0:01:21]} Rf6 {[%emt 0:00:11]} 23. f5 {[%emt 0:00:14]} exf5 {[%emt 0:00:19]} 24. Bd5+ {[%emt 0:00:04]} Kh8 {[%emt 0:00:04]} 25. Bg5 {[%emt 0:00:10]} Bxg3 {[%emt 0:00:13]} 26. Bxf6 {[%emt 0:00:40]} gxf6 {[%emt 0:00:10]} 27. Bf7 {[%emt 0:00:04]} Ne5 {[%emt 0:00:24]} 28. Re2 {[%emt 0:00:47]} Qc7 {[%emt 0:00:34]} 29. Nxe5 {[%emt 0:00:08]} fxe5 {[%emt 0:00:09]} 30. Rg2 {[%emt 0:00:28]} e4 {[%emt 0:00:44]} 31. Qg5 {[%emt 0:00:17]} Qxf7 {[%emt 0:00:28]} 32. Qxg3 {[%emt 0:00:07]} 1-0